[Event "7th Francophone-ch 2019"]
[Site "Paris"]
[Date "2019.08.10"]
[Round "7.6"]
[White "Rakotomaharo, Fy Antenaina"]
[Black "Dudognon, Thibault"]
[Result "1-0"]
[ECO "D19"]
[WhiteElo "2419"]
[BlackElo "2247"]
[Annotator "NA"]
[PlyCount "145"]
[EventDate "2019.08.04"]
[EventType "swiss"]
[EventCountry "FRA"]
[SourceTitle "playchess.com"]
[Source "ChessBase"]
[SourceQuality "1"]
[TimeControl "40/5400+30:1800+30"]

1. d4 {[%emt 0:00:00]} d5 {[%emt 0:00:00]} 2. c4 {[%emt 0:00:00]} c6 {[%emt 0:00:00]} 3. Nc3 {[%emt 0:00:00]} Nf6 {[%emt 0:00:00]} 4. Nf3 {[%emt 0:00:06]} dxc4 {[%emt 0:00:00]} 5. a4 {[%emt 0:00:38]} Bf5 {[%emt 0:00:00]} 6. e3 {[%emt 0:00:20]} e6 {[%emt 0:00:13]} 7. Bxc4 {[%emt 0:00:06]} Bb4 {[%emt 0:00:03]} 8. O-O {[%emt 0:00:10]} Nbd7 {[%emt 0:00:22]} 9. Qe2 {[%emt 0:05:50]} Bg6 {[%emt 0:00:05]} 10. Rd1 {[%emt 0:00:04]} O-O {[%emt 0:00:50]} 11. h3 {[%emt 0:01:05]} Qe7 {[%emt 0:04:51]} 12. Bd2 {[%emt 0:05:14]} e5 {[%emt 0:03:19]} 13. Nh4 {[%emt 0:01:48]} exd4 {[%emt 0:01:50]} 14. Nxg6 {[%emt 0:00:34]} hxg6 {[%emt 0:00:04]} 15. exd4 {[%emt 0:00:05]} Qxe2 {[%emt 0:00:26]} 16. Bxe2 {[%emt 0:00:05]} a5 {[%emt 0:02:40]} 17. Bc4 {[%emt 0:11:37]} Nb6 {[%emt 0:02:19]} 18. Bb3 {[%emt 0:00:04]} Rfe8 {[%emt 0:02:43]} 19. g4 {[%emt 0:04:45]} Rad8 {[%emt 0:02:24]} 20. g5 {[%emt 0:07:08]} Nfd5 {[%emt 0:03:02]} 21. Re1 {[%emt 0:00:48]} Kf8 {[%emt 0:03:27]} 22. Rxe8+ {[%emt 0:04:03]} Rxe8 {[%emt 0:00:23]} 23. Kg2 {[%emt 0:00:49]} f5 {[%emt 0:05:24]} 24. Rh1 {[%emt 0:04:26]} Nc7 {[%emt 0:14:28]} 25. Rd1 {[%emt 0:02:09]} Ncd5 {[%emt 0:07:56]} 26. h4 {[%emt 0:04:04]} Rd8 {[%emt 0:05:24]} 27. Kf3 {[%emt 0:07:43]} Ne7 {[%emt 0:02:55]} 28. Bf4 {[%emt 0:02:41]} Nbd5 {[%emt 0:00:21]} 29. Nxd5 {[%emt 0:00:38]} Nxd5 {[%emt 0:02:36]} 30. Be5 {[%emt 0:00:07]} Bd6 {[%emt 0:02:59]} 31. Bxd5 {[%emt 0:01:25]} Bxe5 {[%emt 0:02:28]} 32. dxe5 {[%emt 0:00:05]} cxd5 {[%emt 0:00:03]} 33. Ke3 {[%emt 0:06:26]} Ke7 {[%emt 0:05:36]} 34. Rc1 {[%emt 0:00:12]} Rh8 {[%emt 0:02:15]} 35. Rc7+ {[%emt 0:08:56]} Ke6 {[%emt 0:00:07]} 36. f4 {[%emt 0:00:03]} Rxh4 {[%emt 0:00:10]} 37. Rxg7 {[%emt 0:00:07]} d4+ {[%emt 0:00:19]} 38. Kf3 {[%emt 0:00:20]} Rh3+ {[%emt 0:00:32]} 39. Kg2 {[%emt 0:00:09]} Rb3 {[%emt 0:00:11]} 40. Rxg6+ {[%emt 0:02:41]} Kd5 {[%emt 0:00:31]} 41. Rd6+ {[%emt 0:30:08]} Ke4 {[%emt 0:30:54]} 42. g6 {[%emt 0:00:09]} Rxb2+ {[%emt 0:05:26]} 43. Kg3 {[%emt 0:01:30]} Rb1 {[%emt 0:00:00]} 44. e6 {[%emt 0:00:00]} Rg1+ {[%emt 0:00:00]} 45. Kf2 {[%emt 0:00:00]} Rxg6 {[%emt 0:00:00]} 46. e7 {[%emt 0:00:00]} Rxd6 {[%emt 0:00:00]} 47. e8=Q+ {[%emt 0:00:00]} Kxf4 {[%emt 0:00:00]} 48. Qe7 {[%emt 0:00:00]} Rd5 {[%emt 0:00:00]} 49. Qe6 {[%emt 0:00:00]} Re5 {[%emt 0:00:00]} 50. Qd7 {[%emt 0:00:00]} Ke4 {[%emt 0:00:25]} 51. Ke2 {[%emt 0:00:00]} Rd5 {[%emt 0:04:16]} 52. Qe7+ {[%emt 0:00:12]} Re5 {[%emt 0:00:08]} 53. Qxb7+ {[%emt 0:00:25]} Rd5 {[%emt 0:00:14]} 54. Qe7+ {[%emt 0:01:42]} Re5 {[%emt 0:00:29]} 55. Qd8 {[%emt 0:08:22]} f4 {[%emt 0:05:04]} 56. Kd2 {[%emt 0:03:56]} Rd5 {[%emt 0:01:34]} 57. Qe7+ {[%emt 0:01:58]} Re5 {[%emt 0:00:26]} 58. Qa3 {[%emt 0:00:14]} Rd5 {[%emt 0:01:34]} 59. Qd3+ {[%emt 0:00:15]} Ke5 {[%emt 0:00:04]} 60. Qe2+ {[%emt 0:00:11]} Kf5 {[%emt 0:03:34]} 61. Kd3 {[%emt 0:01:16]} Re5 {[%emt 0:02:42]} 62. Qg2 {[%emt 0:00:30]} Kf6 {[%emt 0:01:46]} 63. Kxd4 {[%emt 0:01:16]} Rf5 {[%emt 0:01:28]} 64. Qf3 {[%emt 0:00:19]} Kg5 {[%emt 0:00:40]} 65. Ke4 {[%emt 0:00:10]} Rf6 {[%emt 0:01:11]} 66. Qg2+ {[%emt 0:00:25]} Kh6 {[%emt 0:00:16]} 67. Kf3 {[%emt 0:02:33]} Rf5 {[%emt 0:00:18]} 68. Qg8 {[%emt 0:00:26]} Rg5 {[%emt 0:02:20]} 69. Qe6+ {[%emt 0:02:11]} Rg6 {[%emt 0:02:47]} 70. Qh3+ {[%emt 0:00:26]} Kg5 {[%emt 0:00:28]} 71. Qg4+ {[%emt 0:00:22]} Kf6 {[%emt 0:00:15]} 72. Qxf4+ {[%emt 0:00:06]} Ke6 {[%emt 0:00:04]} 73. Qc4+ {[%emt 0:09:57] Kd5 Ke4+} 1-0

[Event "7th Francophone-ch 2019"]
[Site "Paris"]
[Date "2019.08.10"]
[Round "7.7"]
[White "Amdouni, Zoubaier"]
[Black "Dardha, Daniel"]
[Result "1/2-1/2"]
[ECO "B32"]
[WhiteElo "2248"]
[BlackElo "2420"]
[Annotator "NA"]
[PlyCount "59"]
[EventDate "2019.08.04"]
[EventType "swiss"]
[EventCountry "FRA"]
[SourceTitle "playchess.com"]
[Source "ChessBase"]
[SourceQuality "1"]
[TimeControl "40/5400+30:1800+30"]

1. e4 {[%emt 0:03:10]} c5 {[%emt 0:00:00]} 2. Nf3 {[%emt 0:00:06]} Nc6 {[%emt 0:00:00]} 3. d4 {[%emt 0:00:13]} cxd4 {[%emt 0:00:00]} 4. Nxd4 {[%emt 0:00:02]} e5 {[%emt 0:00:00]} 5. Nb5 {[%emt 0:00:38]} d6 {[%emt 0:00:00]} 6. N1c3 {[%emt 0:00:38]} a6 {[%emt 0:00:03]} 7. Na3 {[%emt 0:00:02]} Be7 {[%emt 0:00:04]} 8. Nc4 {[%emt 0:01:47]} b5 {[%emt 0:00:05]} 9. Ne3 {[%emt 0:00:25]} Nf6 {[%emt 0:00:08]} 10. Ned5 {[%emt 0:00:36]} O-O {[%emt 0:00:22]} 11. a4 {[%emt 0:01:58]} b4 {[%emt 0:01:14]} 12. Nxf6+ {[%emt 0:00:11]} Bxf6 {[%emt 0:00:04]} 13. Nd5 {[%emt 0:00:05]} Bg5 {[%emt 0:00:32]} 14. Bc4 {[%emt 0:04:49]} Bxc1 {[%emt 0:02:01]} 15. Rxc1 {[%emt 0:01:22]} a5 {[%emt 0:02:28]} 16. O-O {[%emt 0:00:22]} Nd4 {[%emt 0:01:22]} 17. f4 {[%emt 0:02:48]} Bb7 {[%emt 0:17:06]} 18. c3 {[%emt 0:34:48]} bxc3 {[%emt 0:03:55]} 19. bxc3 {[%emt 0:00:10]} Ne6 {[%emt 0:03:55]} 20. f5 {[%emt 0:00:42]} Nf4 {[%emt 0:10:18]} 21. Nxf4 {[%emt 0:06:19]} exf4 {[%emt 0:00:24]} 22. Rxf4 {[%emt 0:00:44]} Qb6+ {[%emt 0:01:05]} 23. Qd4 {[%emt 0:09:12]} Qxd4+ {[%emt 0:00:18]} 24. cxd4 {[%emt 0:00:01]} Rac8 {[%emt 0:00:14]} 25. Rc2 {[%emt 0:00:06]} h6 {[%emt 0:07:34]} 26. e5 {[%emt 0:08:32]} Bd5 {[%emt 0:01:17]} 27. Bd3 {[%emt 0:00:31]} Rxc2 {[%emt 0:00:08]} 28. Bxc2 {[%emt 0:00:01]} dxe5 {[%emt 0:00:10]} 29. dxe5 {[%emt 0:00:09]} Re8 {[%emt 0:00:10]} 30. e6 {[%emt 0:06:47]} 1/2-1/2

[Event "7th Francophone-ch 2019"]
[Site "Paris"]
[Date "2019.08.10"]
[Round "7.8"]
[White "Ralison, Milanto Harifidy"]
[Black "Di Nicolantonio, Lucas"]
[Result "1-0"]
[ECO "B06"]
[WhiteElo "2291"]
[BlackElo "2396"]
[Annotator "NA"]
[PlyCount "125"]
[EventDate "2019.08.04"]
[EventType "swiss"]
[EventCountry "FRA"]
[SourceTitle "playchess.com"]
[Source "ChessBase"]
[SourceQuality "1"]
[TimeControl "40/5400+30:1800+30"]

1. e4 {[%emt 0:00:00]} g6 {[%emt 0:02:41]} 2. d4 {[%emt 0:00:00]} Bg7 {[%emt 0:00:07]} 3. Nc3 {[%emt 0:00:27]} d6 {[%emt 0:00:31]} 4. Be3 {[%emt 0:00:55]} a6 {[%emt 0:00:17]} 5. a4 {[%emt 0:00:24]} b6 {[%emt 0:02:23]} 6. Bc4 {[%emt 0:01:21]} e6 {[%emt 0:02:10]} 7. f3 {[%emt 0:02:11]} Ne7 {[%emt 0:05:03]} 8. Bb3 {[%emt 0:00:43]} c5 {[%emt 0:11:11]} 9. Nge2 {[%emt 0:01:10]} Nbc6 {[%emt 0:03:41]} 10. d5 {[%emt 0:03:35]} exd5 {[%emt 0:00:13]} 11. Nxd5 {[%emt 0:00:38]} O-O {[%emt 0:10:43]} 12. c3 {[%emt 0:01:18]} Bb7 {[%emt 0:04:56]} 13. Qd2 {[%emt 0:01:33]} b5 {[%emt 0:20:50]} 14. Rd1 {[%emt 0:03:05]} c4 {[%emt 0:09:25]} 15. Ba2 {[%emt 0:00:45]} Ne5 {[%emt 0:11:37]} 16. Nxe7+ {[%emt 0:02:06]} Qxe7 {[%emt 0:00:04]} 17. O-O {[%emt 0:00:35]} Rad8 {[%emt 0:07:54]} 18. Nf4 {[%emt 0:01:59]} f5 {[%emt 0:01:34]} 19. Nd5 {[%emt 0:01:31]} Qe6 {[%emt 0:00:19]} 20. Bg5 {[%emt 0:01:38]} Rd7 {[%emt 0:00:39]} 21. Bb1 {[%emt 0:01:27]} fxe4 {[%emt 0:01:24]} 22. fxe4 {[%emt 0:02:11]} Rdf7 {[%emt 0:01:27]} 23. Rxf7 {[%emt 0:02:41]} Rxf7 {[%emt 0:00:07]} 24. h3 {[%emt 0:00:37]} Qe8 {[%emt 0:01:12]} 25. axb5 {[%emt 0:01:30]} axb5 {[%emt 0:00:03]} 26. Bc2 {[%emt 0:00:33]} Qf8 {[%emt 0:00:09]} 27. Nf4 {[%emt 0:03:06]} Qe8 {[%emt 0:02:17]} 28. Nd5 {[%emt 0:03:49]} Qf8 {[%emt 0:00:02]} 29. Ne3 {[%emt 0:02:25]} h6 {[%emt 0:00:12]} 30. Bh4 {[%emt 0:00:23]} Nd3 {[%emt 0:01:08]} 31. Bxd3 {[%emt 0:01:33]} cxd3 32. Qxd3 {[%emt 0:00:13]} Be5 {[%emt 0:00:29]} 33. Nd5 {[%emt 0:01:39]} g5 {[%emt 0:00:25]} 34. Bg3 {[%emt 0:00:33]} Qe8 {[%emt 0:00:26]} 35. Bxe5 {[%emt 0:01:42]} Qxe5 {[%emt 0:00:05]} 36. Qd4 {[%emt 0:00:13]} Qe6 {[%emt 0:01:12]} 37. Rf1 {[%emt 0:00:52]} Rxf1+ {[%emt 0:00:42]} 38. Kxf1 {[%emt 0:00:05]} Kh7 {[%emt 0:00:40]} 39. Ke2 {[%emt 0:02:03]} Qf7 {[%emt 0:00:32]} 40. Ne3 {[%emt 0:02:26]} Qe6 {[%emt 0:00:39]} 41. Kd3 {[%emt 0:31:21]} Qa2 {[%emt 0:02:44]} 42. Kc2 {[%emt 0:00:00]} Qe6 {[%emt 0:01:09]} 43. Nd5 {[%emt 0:00:00]} Qf7 {[%emt 0:09:22]} 44. Kb3 {[%emt 0:00:00]} Qf1 {[%emt 0:12:41]} 45. Ne3 {[%emt 0:08:01]} Qa1 {[%emt 0:01:09]} 46. Kc2 {[%emt 0:03:43]} Qa8 {[%emt 0:02:45]} 47. Nd5 {[%emt 0:10:02]} Qf8 {[%emt 0:00:14]} 48. Qf6 {[%emt 0:01:20]} Qxf6 {[%emt 0:00:11]} 49. Nxf6+ {[%emt 0:00:04]} Kg6 {[%emt 0:00:05]} 50. Nd5 {[%emt 0:00:03]} g4 {[%emt 0:00:33]} 51. h4 {[%emt 0:08:55]} g3 {[%emt 0:00:06]} 52. Kd3 {[%emt 0:00:27]} Kh5 {[%emt 0:00:14]} 53. Ke3 {[%emt 0:03:18]} Kxh4 {[%emt 0:02:13]} 54. Kf4 {[%emt 0:00:48]} Kh5 {[%emt 0:01:35]} 55. Ne7 {[%emt 0:00:20]} Ba8 {[%emt 0:01:36]} 56. Nf5 {[%emt 0:01:11]} d5 {[%emt 0:00:10]} 57. e5 {[%emt 0:01:28]} d4 {[%emt 0:00:20]} 58. cxd4 {[%emt 0:01:30]} Bxg2 {[%emt 0:00:04]} 59. Kxg3 {[%emt 0:01:44]} Bb7 {[%emt 0:00:09]} 60. Kf4 {[%emt 0:00:39]} Kg6 {[%emt 0:00:09]} 61. d5 {[%emt 0:01:03]} h5 {[%emt 0:01:09]} 62. d6 {[%emt 0:01:06]} Kf7 {[%emt 0:00:05]} 63. d7 {[%emt 0:00:13]} 1-0

[Event "7th Francophone-ch 2019"]
[Site "Paris"]
[Date "2019.08.10"]
[Round "7.9"]
[White "Chandesris, Ludovic"]
[Black "Okhotnik, Vladimir"]
[Result "1-0"]
[ECO "B22"]
[WhiteElo "2272"]
[BlackElo "2381"]
[Annotator "NA"]
[PlyCount "117"]
[EventDate "2019.08.04"]
[EventType "swiss"]
[EventCountry "FRA"]
[SourceTitle "playchess.com"]
[Source "ChessBase"]
[SourceQuality "1"]
[TimeControl "40/5400+30:1800+30"]

1. e4 {[%emt 0:00:00]} c5 {[%emt 0:00:00]} 2. Nf3 {[%emt 0:00:00]} e6 {[%emt 0:00:00]} 3. c3 {[%emt 0:00:21]} d5 {[%emt 0:00:00]} 4. exd5 {[%emt 0:00:26]} exd5 {[%emt 0:00:02]} 5. d4 {[%emt 0:01:00]} Nc6 {[%emt 0:00:23]} 6. Be2 {[%emt 0:01:42]} Bd6 {[%emt 0:00:29]} 7. Be3 {[%emt 0:01:35]} c4 {[%emt 0:01:16]} 8. b3 {[%emt 0:01:13]} cxb3 {[%emt 0:00:05]} 9. axb3 {[%emt 0:00:06]} Nge7 {[%emt 0:00:21]} 10. O-O {[%emt 0:01:00]} O-O {[%emt 0:00:10]} 11. Re1 {[%emt 0:03:24]} a6 {[%emt 0:00:51]} 12. Nbd2 {[%emt 0:05:26]} Nf5 {[%emt 0:00:33]} 13. Nf1 {[%emt 0:00:32]} Nce7 {[%emt 0:04:58]} 14. Qc2 {[%emt 0:04:00]} Nxe3 {[%emt 0:02:22]} 15. Nxe3 {[%emt 0:00:06]} f6 {[%emt 0:01:22]} 16. Nxd5 {[%emt 0:02:31]} Nxd5 {[%emt 0:01:44]} 17. Bc4 {[%emt 0:00:06]} Kh8 {[%emt 0:00:46]} 18. Bxd5 {[%emt 0:00:05]} Bxh2+ {[%emt 0:00:06]} 19. Kxh2 {[%emt 0:00:52]} Qxd5 {[%emt 0:00:06]} 20. c4 {[%emt 0:01:55]} Qh5+ {[%emt 0:07:24]} 21. Kg1 {[%emt 0:00:06]} Bf5 {[%emt 0:00:14]} 22. Qd2 {[%emt 0:02:45]} Rfe8 {[%emt 0:02:37]} 23. Rxe8+ {[%emt 0:08:34]} Rxe8 {[%emt 0:00:34]} 24. Re1 {[%emt 0:00:42]} g5 {[%emt 0:03:30]} 25. d5 {[%emt 0:03:11]} Qf7 {[%emt 0:03:29]} 26. Rxe8+ {[%emt 0:16:57]} Qxe8 {[%emt 0:00:04]} 27. Qd4 {[%emt 0:00:08]} Kg7 {[%emt 0:02:22]} 28. Nxg5 {[%emt 0:03:18]} Qe1+ {[%emt 0:00:05]} 29. Kh2 {[%emt 0:00:04]} Qe5+ {[%emt 0:00:03]} 30. Qxe5 {[%emt 0:00:10]} fxe5 {[%emt 0:00:02]} 31. Nf3 {[%emt 0:09:33]} Kf6 {[%emt 0:01:04]} 32. Kg3 {[%emt 0:00:00]} a5 {[%emt 0:02:03]} 33. Nd2 {[%emt 0:00:22]} b6 {[%emt 0:02:01]} 34. Kf3 {[%emt 0:01:50]} Bc2 {[%emt 0:00:05]} 35. Kg4 {[%emt 0:02:26]} Bf5+ {[%emt 0:04:44]} 36. Kf3 {[%emt 0:02:39]} Bc2 {[%emt 0:00:08]} 37. Ke3 {[%emt 0:00:23]} Ke7 {[%emt 0:00:20]} 38. g3 {[%emt 0:06:05]} Kd6 {[%emt 0:02:24]} 39. Ne4+ {[%emt 0:02:08]} Kc7 {[%emt 0:00:44]} 40. Nd2 {[%emt 0:01:29]} Kd6 {[%emt 0:00:09]} 41. f4 {[%emt 0:35:10]} exf4+ {[%emt 0:30:09]} 42. Kxf4 {[%emt 0:04:03]} h5 {[%emt 0:02:28]} 43. Ke3 {[%emt 0:01:45]} Ke5 {[%emt 0:04:37]} 44. Nf3+ {[%emt 0:01:22]} Kd6 {[%emt 0:00:15]} 45. Nd4 {[%emt 0:00:19]} Bd1 {[%emt 0:00:07]} 46. Kf4 {[%emt 0:07:41]} Bg4 {[%emt 0:05:06]} 47. Nf5+ {[%emt 0:01:59]} Kd7 {[%emt 0:01:23]} 48. Ne3 {[%emt 0:01:12]} Be2 {[%emt 0:00:41]} 49. Ke5 {[%emt 0:00:10]} Bf3 {[%emt 0:02:35]} 50. d6 {[%emt 0:00:00]} Bc6 {[%emt 0:00:00]} 51. Nd5 {[%emt 0:00:00]} b5 {[%emt 0:00:00]} 52. cxb5 {[%emt 0:00:00]} Bxb5 {[%emt 0:00:00]} 53. Nf6+ {[%emt 0:00:00]} Kd8 {[%emt 0:00:00]} 54. Nxh5 {[%emt 0:00:00]} Be2 {[%emt 0:00:00]} 55. Nf4 {[%emt 0:00:00]} Bd1 {[%emt 0:00:00]} 56. Ne6+ {[%emt 0:00:00]} Kd7 {[%emt 0:00:00]} 57. Nc5+ {[%emt 0:00:00]} Kc6 {[%emt 0:00:00]} 58. d7 {[%emt 0:00:00]} Kc7 {[%emt 0:00:00]} 59. Ke4 {[%emt 0:06:39]} 1-0

[Event "7th Francophone-ch 2019"]
[Site "Paris"]
[Date "2019.08.10"]
[Round "7.10"]
[White "Najart, David"]
[Black "Berend, Fred"]
[Result "0-1"]
[ECO "A21"]
[WhiteElo "2280"]
[BlackElo "2350"]
[Annotator "NA"]
[PlyCount "68"]
[EventDate "2019.08.04"]
[EventType "swiss"]
[EventCountry "FRA"]
[SourceTitle "playchess.com"]
[Source "ChessBase"]
[SourceQuality "1"]
[TimeControl "40/5400+30:1800+30"]

1. c4 {[%emt 0:00:00]} g6 {[%emt 0:00:00]} 2. g3 {[%emt 0:00:00]} Bg7 {[%emt 0:00:00]} 3. Bg2 {[%emt 0:00:00]} e5 {[%emt 0:02:33]} 4. Nc3 {[%emt 0:00:04]} d6 {[%emt 0:01:33]} 5. d3 {[%emt 0:01:03]} f5 {[%emt 0:01:30]} 6. e3 {[%emt 0:00:44]} Nf6 {[%emt 0:00:08]} 7. Nge2 {[%emt 0:00:10]} O-O {[%emt 0:00:12]} 8. h3 {[%emt 0:01:15]} c6 {[%emt 0:00:54]} 9. f4 {[%emt 0:07:31]} Na6 {[%emt 0:04:58]} 10. Rb1 {[%emt 0:04:47]} Nc7 {[%emt 0:00:26]} 11. b4 {[%emt 0:00:48]} Re8 {[%emt 0:09:05]} 12. O-O {[%emt 0:16:57]} a6 {[%emt 0:02:19]} 13. Kh2 {[%emt 0:04:42]} exf4 {[%emt 0:03:15]} 14. gxf4 {[%emt 0:01:13]} d5 {[%emt 0:05:40]} 15. c5 {[%emt 0:02:15]} Bd7 {[%emt 0:10:48]} 16. Nd4 {[%emt 0:07:32]} Re7 {[%emt 0:02:48]} 17. a4 {[%emt 0:05:57]} Qe8 {[%emt 0:04:49]} 18. Qd2 {[%emt 0:00:37]} Ne6 {[%emt 0:05:42]} 19. Nxe6 {[%emt 0:08:02]} Rxe6 {[%emt 0:00:51]} 20. Bf3 {[%emt 0:04:34]} Qe7 {[%emt 0:06:56]} 21. Rf2 {[%emt 0:25:11]} Re8 {[%emt 0:01:20]} 22. Re2 {[%emt 0:00:32]} h6 {[%emt 0:03:56]} 23. Qe1 {[%emt 0:02:45]} Bc8 {[%emt 0:01:20]} 24. Bd2 {[%emt 0:00:55]} a5 {[%emt 0:00:19]} 25. d4 {[%emt 0:00:30]} axb4 {[%emt 0:00:15]} 26. Rxb4 {[%emt 0:00:01]} g5 {[%emt 0:02:27]} 27. fxg5 {[%emt 0:01:28]} hxg5 {[%emt 0:00:07]} 28. Qg3 {[%emt 0:01:22]} g4 {[%emt 0:01:17]} 29. hxg4 {[%emt 0:00:21]} fxg4 {[%emt 0:00:33]} 30. Bg2 {[%emt 0:00:08]} Nh5 {[%emt 0:01:06]} 31. Qe1 {[%emt 0:00:09]} Bf6 {[%emt 0:13:19]} 32. e4 {[%emt 0:01:00]} Bh4 {[%emt 0:00:43]} 33. Qc1 {[%emt 0:00:40]} Qh7 {[%emt 0:01:18]} 34. Bf4 {[%emt 0:00:48]} Nxf4 {[%emt 0:00:32]} 0-1

[Event "7th Francophone-ch 2019"]
[Site "Paris"]
[Date "2019.08.11"]
[Round "8.1"]
[White "Flom, Gabriel"]
[Black "Mastrovasilis, Dimitrios"]
[Result "1/2-1/2"]
[ECO "D41"]
[WhiteElo "2494"]
[BlackElo "2589"]
[Annotator "ChessBase"]
[PlyCount "122"]
[EventDate "2019.08.04"]
[EventType "swiss"]
[EventCountry "FRA"]
[SourceTitle "playchess.com"]
[Source "ChessBase"]
[SourceQuality "1"]
[TimeControl "40/5400+30:1800+30"]

1. d4 {[%emt 0:00:00]} d5 {[%emt 0:06:44]} 2. c4 {[%emt 0:00:00]} e6 {[%emt 0:00:25]} 3. Nc3 {[%emt 0:00:00]} Nf6 {[%emt 0:00:29]} 4. cxd5 {[%emt 0:00:42]} Nxd5 {[%emt 0:00:16]} 5. e4 {[%emt 0:01:51]} Nxc3 {[%emt 0:00:13]} 6. bxc3 {[%emt 0:00:02]} c5 {[%emt 0:00:10]} 7. Nf3 {[%emt 0:01:27]} cxd4 {[%emt 0:00:17]} 8. cxd4 {[%emt 0:00:02]} Bb4+ {[%emt 0:00:10]} 9. Bd2 {[%emt 0:00:03]} Bxd2+ {[%emt 0:00:08]} 10. Qxd2 {[%emt 0:00:03]} O-O {[%emt 0:00:10]} 11. Bc4 {[%emt 0:00:25]} Nd7 {[%emt 0:00:08]} 12. O-O {[%emt 0:00:11]} b6 {[%emt 0:00:07]} 13. Rfe1 {[%emt 0:04:32]} Bb7 {[%emt 0:00:15]} 14. Rad1 {[%emt 0:00:07]} Rc8 {[%emt 0:00:17]} 15. Bb3 {[%emt 0:00:04]} h6 {[%emt 0:00:36]} 16. h3 {[%emt 0:14:58]} Qf6 {[%emt 0:03:21]} 17. Nh2 {[%emt 0:01:56]} Rfd8 {[%emt 0:13:21]} 18. Qe3 {[%emt 0:00:16]} Qg6 {[%emt 0:04:09]} 19. f3 {[%emt 0:02:57]} Nf6 {[%emt 0:11:24]} 20. Ng4 {[%emt 0:15:00]} Nxg4 {[%emt 0:04:48]} 21. hxg4 {[%emt 0:00:02]} Qg5 {[%emt 0:00:37]} 22. Qxg5 {[%emt 0:00:40]} hxg5 {[%emt 0:00:03]} 23. d5 {[%emt 0:00:23]} e5 {[%emt 0:31:38]} 24. Kf2 {[%emt 0:07:02]} Kf8 {[%emt 0:01:05]} 25. Rc1 {[%emt 0:19:02]} Ke7 {[%emt 0:00:37]} 26. Ke3 {[%emt 0:03:47]} Kd6 {[%emt 0:02:16]} 27. a4 {[%emt 0:10:28]} Rxc1 {[%emt 0:03:16]} 28. Rxc1 {[%emt 0:00:02]} Rc8 {[%emt 0:00:25]} 29. Rxc8 {[%emt 0:00:04]} Bxc8 {[%emt 0:00:06]} 30. Kd3 {[%emt 0:00:23]} Kc5 {[%emt 0:00:32]} 31. Kc3 {[%emt 0:00:04]} Ba6 {[%emt 0:03:20]} 32. Bc2 {[%emt 0:00:51]} b5 {[%emt 0:08:02]} 33. Bd3 {[%emt 0:06:58]} b4+ {[%emt 0:00:33]} 34. Kd2 {[%emt 0:00:02]} Bc8 {[%emt 0:00:35]} 35. a5 {[%emt 0:06:47]} Bd7 {[%emt 0:01:43]} 36. Kc2 {[%emt 0:00:39]} Ba4+ {[%emt 0:02:22]} 37. Kb2 {[%emt 0:00:08]} Kd4 {[%emt 0:01:34]} 38. Ba6 {[%emt 0:00:09]} Kc5 {[%emt 0:00:29]} 39. Bd3 {[%emt 0:00:50]} g6 {[%emt 0:01:25]} 40. Ba6 {[%emt 0:01:03]} Bd7 {[%emt 0:00:43]} 41. Kb3 {[%emt 0:32:30]} f5 {[%emt 0:00:06]} 42. gxf5 {[%emt 0:03:19]} gxf5 {[%emt 0:00:11]} 43. g3 {[%emt 0:00:01]} fxe4 {[%emt 0:22:02]} 44. fxe4 {[%emt 0:00:07]} Bg4 {[%emt 0:00:07]} 45. Bd3 {[%emt 0:01:05]} Bd1+ {[%emt 0:00:09]} 46. Kb2 {[%emt 0:00:07]} Ba4 {[%emt 0:03:03]} 47. Ba6 {[%emt 0:00:49]} Kd4 {[%emt 0:00:36]} 48. Bb7 {[%emt 0:00:05]} Kc5 {[%emt 0:01:16]} 49. Bc8 {[%emt 0:01:48]} Bb5 {[%emt 0:01:16]} 50. Bf5 {[%emt 0:00:19]} Bc4 {[%emt 0:02:06]} 51. Kc2 {[%emt 0:00:33]} Be2 {[%emt 0:03:06]} 52. Kb3 {[%emt 0:00:11]} Bd1+ {[%emt 0:01:15]} 53. Kb2 {[%emt 0:00:03]} Ba4 {[%emt 0:01:22]} 54. Ka2 {[%emt 0:00:08]} Bc2 {[%emt 0:00:53]} 55. Kb2 {[%emt 0:00:03]} Bd1 {[%emt 0:00:07]} 56. Ka2 {[%emt 0:00:16]} Kb5 {[%emt 0:00:35]} 57. d6 {[%emt 0:00:46]} Kc6 {[%emt 0:00:37]} 58. d7 {[%emt 0:00:03]} Kc7 {[%emt 0:00:00]} 59. Kb2 {[%emt 0:00:23]} Ba4 {[%emt 0:00:00]} 60. Ka2 {[%emt 0:00:10]} Bd1 {[%emt 0:00:49]} 61. Kb2 {[%emt 0:00:05]} Ba4 {[%emt 0:00:06]} 1/2-1/2